Department Family,Entity,Date of Payment,Expense Type,Expense Area,Supplier,Transaction Number,Amount in Sterling,Expense Description 
ECGD,ECGD,25 Jul 23,External Meeting Rooms,HRD,Clarity Travel Ltd frmly Mawasem Ltd,         228,-22.64,Venue Hire 
ECGD,ECGD,25 Jul 23,External Meeting Rooms,HRD,Clarity Travel Ltd frmly Mawasem Ltd,         228,"2,637.40",Venue Hire 
ECGD,ECGD,25 Jul 23,External Meeting Rooms,SPoCC,Clarity Travel Ltd frmly Mawasem Ltd,         228,676.00,Business Travel 
ECGD,ECGD,25 Jul 23,Home Travel /Subsistence,Business Group _ Main,Clarity Travel Ltd frmly Mawasem Ltd,         228,1.00,Business Travel 
ECGD,ECGD,25 Jul 23,Home Travel /Subsistence,Business Group _ Main,Clarity Travel Ltd frmly Mawasem Ltd,         228,1.00,Business Travel 
ECGD,ECGD,25 Jul 23,Home Travel /Subsistence,Business Group _ Main,Clarity Travel Ltd frmly Mawasem Ltd,         228,1.00,Business Travel 
ECGD,ECGD,25 Jul 23,Home Travel /Subsistence,Business Group _ Main,Clarity Travel Ltd frmly Mawasem Ltd,         228,1.00,Business Travel 
ECGD,ECGD,25 Jul 23,Home Travel /Subsistence,Business Group _ Main,Clarity Travel Ltd frmly Mawasem Ltd,         228,1.00,Business Travel 
ECGD,ECGD,25 Jul 23,Home Travel /Subsistence,Business Group _ Main,Clarity Travel Ltd frmly Mawasem Ltd,         228,1.00,Business Travel 
ECGD,ECGD,25 Jul 23,Home Travel /Subsistence,Business Group _ Main,Clarity Travel Ltd frmly Mawasem Ltd,         228,1.00,Business Travel 
ECGD,ECGD,25 Jul 23,Home Travel /Subsistence,Business Group _ Main,Clarity Travel Ltd frmly Mawasem Ltd,         228,1.00,Business Travel 
ECGD,ECGD,25 Jul 23,Home Travel /Subsistence,Business Group _ Main,Clarity Travel Ltd frmly Mawasem Ltd,         228,2.00,Business Travel 
ECGD,ECGD,25 Jul 23,Home Travel /Subsistence,Business Group _ Main,Clarity Travel Ltd frmly Mawasem Ltd,         228,2.00,Business Travel 
ECGD,ECGD,25 Jul 23,Home Travel /Subsistence,Business Group _ Main,Clarity Travel Ltd frmly Mawasem Ltd,         228,2.00,Business Travel 
ECGD,ECGD,25 Jul 23,Home Travel /Subsistence,Business Group _ Main,Clarity Travel Ltd frmly Mawasem Ltd,         228,2.00,Business Travel 
ECGD,ECGD,25 Jul 23,Home Travel /Subsistence,Business Group _ Main,Clarity Travel Ltd frmly Mawasem Ltd,         228,2.00,Business Travel 
ECGD,ECGD,25 Jul 23,Home Travel /Subsistence,Business Group _ Main,Clarity Travel Ltd frmly Mawasem Ltd,         228,2.00,Business Travel 
ECGD,ECGD,25 Jul 23,Home Travel /Subsistence,Business Group _ Main,Clarity Travel Ltd frmly Mawasem Ltd,         228,2.00,Business Travel 
ECGD,ECGD,25 Jul 23,Home Travel /Subsistence,Business Group _ Main,Clarity Travel Ltd frmly Mawasem Ltd,         228,2.00,Business Travel 
ECGD,ECGD,25 Jul 23,Home Travel /Subsistence,Business Group _ Main,Clarity Travel Ltd frmly Mawasem Ltd,         228,2.00,Business Travel 
ECGD,ECGD,25 Jul 23,Home Travel /Subsistence,Business Group _ Main,Clarity Travel Ltd frmly Mawasem Ltd,         228,2.00,Business Travel 
ECGD,ECGD,25 Jul 23,Home Travel /Subsistence,Business Group _ Main,Clarity Travel Ltd frmly Mawasem Ltd,         228,3.50,Business Travel 
ECGD,ECGD,25 Jul 23,Home Travel /Subsistence,Business Group _ Main,Clarity Travel Ltd frmly Mawasem Ltd,         228,3.50,Business Travel 
ECGD,ECGD,25 Jul 23,Home Travel /Subsistence,Business Group _ Main,Clarity Travel Ltd frmly Mawasem Ltd,         228,3.50,Business Travel 
ECGD,ECGD,25 Jul 23,Home Travel /Subsistence,Business Group _ Main,Clarity Travel Ltd frmly Mawasem Ltd,         228,3.50,Business Travel 
ECGD,ECGD,25 Jul 23,Home Travel /Subsistence,Business Group _ Main,Clarity Travel Ltd frmly Mawasem Ltd,         228,3.50,Business Travel 
ECGD,ECGD,25 Jul 23,Home Travel /Subsistence,Business Group _ Main,Clarity Travel Ltd frmly Mawasem Ltd,         228,3.50,Business Travel 
ECGD,ECGD,25 Jul 23,Home Travel /Subsistence,Business Group _ Main,Clarity Travel Ltd frmly Mawasem Ltd,         228,3.50,Business Travel 
ECGD,ECGD,25 Jul 23,Home Travel /Subsistence,Business Group _ Main,Clarity Travel Ltd frmly Mawasem Ltd,         228,3.50,Business Travel 
ECGD,ECGD,25 Jul 23,Home Travel /Subsistence,Business Group _ Main,Clarity Travel Ltd frmly Mawasem Ltd,         228,3.50,Business Travel 
ECGD,ECGD,25 Jul 23,Home Travel /Subsistence,Business Group _ Main,Clarity Travel Ltd frmly Mawasem Ltd,         228,4.00,Business Travel 
ECGD,ECGD,25 Jul 23,Home Travel /Subsistence,Business Group _ Main,Clarity Travel Ltd frmly Mawasem Ltd,         228,4.00,Business Travel 
ECGD,ECGD,25 Jul 23,Home Travel /Subsistence,Business Group _ Main,Clarity Travel Ltd frmly Mawasem Ltd,         228,4.50,Business Travel 
ECGD,ECGD,25 Jul 23,Home Travel /Subsistence,Business Group _ Main,Clarity Travel Ltd frmly Mawasem Ltd,         228,4.50,Business Travel 
ECGD,ECGD,25 Jul 23,Home Travel /Subsistence,Business Group _ Main,Clarity Travel Ltd frmly Mawasem Ltd,         228,7.00,Business Travel 
ECGD,ECGD,25 Jul 23,Home Travel /Subsistence,Business Group _ Main,Clarity Travel Ltd frmly Mawasem Ltd,         228,20.49,Business Travel 
ECGD,ECGD,25 Jul 23,Home Travel /Subsistence,Business Group _ Main,Clarity Travel Ltd frmly Mawasem Ltd,         228,31.70,Business Travel 
ECGD,ECGD,25 Jul 23,Home Travel /Subsistence,Business Group _ Main,Clarity Travel Ltd frmly Mawasem Ltd,         228,31.70,Business Travel 
ECGD,ECGD,25 Jul 23,Home Travel /Subsistence,Business Group _ Main,Clarity Travel Ltd frmly Mawasem Ltd,         228,54.50,Business Travel 
ECGD,ECGD,25 Jul 23,Home Travel /Subsistence,Business Group _ Main,Clarity Travel Ltd frmly Mawasem Ltd,         228,57.92,Business Travel 
ECGD,ECGD,25 Jul 23,Home Travel /Subsistence,Business Group _ Main,Clarity Travel Ltd frmly Mawasem Ltd,         228,59.17,Business Travel 
ECGD,ECGD,25 Jul 23,Home Travel /Subsistence,Business Group _ Main,Clarity Travel Ltd frmly Mawasem Ltd,         228,65.83,Business Travel 
ECGD,ECGD,25 Jul 23,Home Travel /Subsistence,Business Group _ Main,Clarity Travel Ltd frmly Mawasem Ltd,         228,77.00,Business Travel 
ECGD,ECGD,25 Jul 23,Home Travel /Subsistence,Business Group _ Main,Clarity Travel Ltd frmly Mawasem Ltd,         228,109.45,Business Travel 
ECGD,ECGD,25 Jul 23,Home Travel /Subsistence,Business Group _ Main,Clarity Travel Ltd frmly Mawasem Ltd,         228,109.45,Business Travel 
ECGD,ECGD,25 Jul 23,Home Travel /Subsistence,Business Group _ Main,Clarity Travel Ltd frmly Mawasem Ltd,         228,109.45,Business Travel 
ECGD,ECGD,25 Jul 23,Home Travel /Subsistence,Business Group _ Main,Clarity Travel Ltd frmly Mawasem Ltd,         228,110.00,Business Travel 
ECGD,ECGD,25 Jul 23,Home Travel /Subsistence,Business Group _ Main,Clarity Travel Ltd frmly Mawasem Ltd,         228,116.67,Business Travel 
ECGD,ECGD,25 Jul 23,Home Travel /Subsistence,Business Group _ Main,Clarity Travel Ltd frmly Mawasem Ltd,         228,116.67,Business Travel 
ECGD,ECGD,25 Jul 23,Home Travel /Subsistence,Business Group _ Main,Clarity Travel Ltd frmly Mawasem Ltd,         228,128.99,Business Travel 
ECGD,ECGD,25 Jul 23,Home Travel /Subsistence,Business Group _ Main,Clarity Travel Ltd frmly Mawasem Ltd,         228,130.03,Business Travel 
ECGD,ECGD,25 Jul 23,Home Travel /Subsistence,Business Group _ Main,Clarity Travel Ltd frmly Mawasem Ltd,         228,130.03,Business Travel 
ECGD,ECGD,25 Jul 23,Home Travel /Subsistence,Business Group _ Main,Clarity Travel Ltd frmly Mawasem Ltd,         228,136.99,Business Travel 
ECGD,ECGD,25 Jul 23,Home Travel /Subsistence,Business Group _ Main,Clarity Travel Ltd frmly Mawasem Ltd,         228,146.67,Business Travel 
ECGD,ECGD,25 Jul 23,Home Travel /Subsistence,Business Group _ Main,Clarity Travel Ltd frmly Mawasem Ltd,         228,155.00,Business Travel 
ECGD,ECGD,25 Jul 23,Home Travel /Subsistence,Business Group _ Main,Clarity Travel Ltd frmly Mawasem Ltd,         228,155.00,Business Travel 
ECGD,ECGD,25 Jul 23,Home Travel /Subsistence,Business Group _ Main,Clarity Travel Ltd frmly Mawasem Ltd,         228,155.00,Business Travel 
ECGD,ECGD,25 Jul 23,Home Travel /Subsistence,Business Group _ Main,Clarity Travel Ltd frmly Mawasem Ltd,         228,155.00,Business Travel 
ECGD,ECGD,25 Jul 23,Home Travel /Subsistence,Business Group _ Main,Clarity Travel Ltd frmly Mawasem Ltd,         228,161.13,Business Travel 
ECGD,ECGD,25 Jul 23,Home Travel /Subsistence,Business Group _ Main,Clarity Travel Ltd frmly Mawasem Ltd,         228,164.60,Business Travel 
ECGD,ECGD,25 Jul 23,Home Travel /Subsistence,Business Group _ Main,Clarity Travel Ltd frmly Mawasem Ltd,         228,166.18,Business Travel 
ECGD,ECGD,25 Jul 23,Home Travel /Subsistence,Business Group _ Main,Clarity Travel Ltd frmly Mawasem Ltd,         228,172.50,Business Travel 
ECGD,ECGD,25 Jul 23,Home Travel /Subsistence,Business Group _ Main,Clarity Travel Ltd frmly Mawasem Ltd,         228,184.53,Business Travel 
ECGD,ECGD,25 Jul 23,Home Travel /Subsistence,Business Group _ Main,Clarity Travel Ltd frmly Mawasem Ltd,         228,186.35,Business Travel 
ECGD,ECGD,25 Jul 23,Home Travel /Subsistence,Business Group _ Main,Clarity Travel Ltd frmly Mawasem Ltd,         228,186.35,Business Travel 
ECGD,ECGD,25 Jul 23,Home Travel /Subsistence,Business Group _ Main,Clarity Travel Ltd frmly Mawasem Ltd,         228,204.20,Business Travel 
ECGD,ECGD,25 Jul 23,Home Travel /Subsistence,Business Group _ Main,Clarity Travel Ltd frmly Mawasem Ltd,         228,204.20,Business Travel 
ECGD,ECGD,25 Jul 23,Home Travel /Subsistence,Business Group _ Main,Clarity Travel Ltd frmly Mawasem Ltd,         228,205.00,Business Travel 
ECGD,ECGD,25 Jul 23,Home Travel /Subsistence,Business Group _ Main,Clarity Travel Ltd frmly Mawasem Ltd,         228,205.00,Business Travel 
ECGD,ECGD,25 Jul 23,Home Travel /Subsistence,Business Group _ Main,Clarity Travel Ltd frmly Mawasem Ltd,         228,211.68,Business Travel 
ECGD,ECGD,25 Jul 23,Home Travel /Subsistence,Business Group _ Main,Clarity Travel Ltd frmly Mawasem Ltd,         228,211.68,Business Travel 
ECGD,ECGD,25 Jul 23,Home Travel /Subsistence,Business Group _ Main,Clarity Travel Ltd frmly Mawasem Ltd,         228,216.20,Business Travel 
ECGD,ECGD,25 Jul 23,Home Travel /Subsistence,Business Group _ Main,Clarity Travel Ltd frmly Mawasem Ltd,         228,228.70,Business Travel 
ECGD,ECGD,25 Jul 23,Home Travel /Subsistence,Business Group _ Main,Clarity Travel Ltd frmly Mawasem Ltd,         228,275.00,Business Travel 
ECGD,ECGD,25 Jul 23,Home Travel /Subsistence,Business Group _ Main,Clarity Travel Ltd frmly Mawasem Ltd,         228,279.47,Business Travel 
ECGD,ECGD,25 Jul 23,Home Travel /Subsistence,Business Group _ Main,Clarity Travel Ltd frmly Mawasem Ltd,         228,"5,064.78",Business Travel 
ECGD,ECGD,25 Jul 23,Home Travel /Subsistence,Digital and Data Division,Clarity Travel Ltd frmly Mawasem Ltd,         228,2.00,Digital costs 
ECGD,ECGD,25 Jul 23,Home Travel /Subsistence,Digital and Data Division,Clarity Travel Ltd frmly Mawasem Ltd,         228,167.40,Digital costs 
ECGD,ECGD,25 Jul 23,Home Travel /Subsistence,HRD,Clarity Travel Ltd frmly Mawasem Ltd,         228,1.00,Business Travel 
ECGD,ECGD,25 Jul 23,Home Travel /Subsistence,HRD,Clarity Travel Ltd frmly Mawasem Ltd,         228,1.00,Business Travel 
ECGD,ECGD,25 Jul 23,Home Travel /Subsistence,HRD,Clarity Travel Ltd frmly Mawasem Ltd,         228,3.50,Business Travel 
ECGD,ECGD,25 Jul 23,Home Travel /Subsistence,HRD,Clarity Travel Ltd frmly Mawasem Ltd,         228,3.50,Business Travel 
ECGD,ECGD,25 Jul 23,Home Travel /Subsistence,HRD,Clarity Travel Ltd frmly Mawasem Ltd,         228,24.00,Business Travel 
ECGD,ECGD,25 Jul 23,Home Travel /Subsistence,HRD,Clarity Travel Ltd frmly Mawasem Ltd,         228,24.00,Business Travel 
ECGD,ECGD,25 Jul 23,Home Travel /Subsistence,HRD,Clarity Travel Ltd frmly Mawasem Ltd,         228,449.97,Business Travel 
ECGD,ECGD,25 Jul 23,Home Travel /Subsistence,HRD,Clarity Travel Ltd frmly Mawasem Ltd,         228,449.97,Business Travel 
ECGD,ECGD,25 Jul 23,Home Travel /Subsistence,OCCMC,Clarity Travel Ltd frmly Mawasem Ltd,         228,2.00,Business Travel 
ECGD,ECGD,25 Jul 23,Home Travel /Subsistence,OCCMC,Clarity Travel Ltd frmly Mawasem Ltd,         228,3.00,Business Travel 
ECGD,ECGD,25 Jul 23,Home Travel /Subsistence,OCCMC,Clarity Travel Ltd frmly Mawasem Ltd,         228,155.00,Business Travel 
ECGD,ECGD,25 Jul 23,Home Travel /Subsistence,OCCMC,Clarity Travel Ltd frmly Mawasem Ltd,         228,186.39,Business Travel 
ECGD,ECGD,25 Jul 23,Home Travel /Subsistence,Portfolio Management Division,Clarity Travel Ltd frmly Mawasem Ltd,         228,1.00,Business Travel 
ECGD,ECGD,25 Jul 23,Home Travel /Subsistence,Portfolio Management Division,Clarity Travel Ltd frmly Mawasem Ltd,         228,82.10,Business Travel 
ECGD,ECGD,25 Jul 23,Home Travel /Subsistence,Portfolio Management Division,Clarity Travel Ltd frmly Mawasem Ltd,         228,120.83,Business Travel 
ECGD,ECGD,25 Jul 23,Home Travel /Subsistence,Risk Approval Division,Clarity Travel Ltd frmly Mawasem Ltd,         228,2.00,Business Travel 
ECGD,ECGD,25 Jul 23,Home Travel /Subsistence,Risk Approval Division,Clarity Travel Ltd frmly Mawasem Ltd,         228,2.00,Business Travel 
ECGD,ECGD,25 Jul 23,Home Travel /Subsistence,Risk Approval Division,Clarity Travel Ltd frmly Mawasem Ltd,         228,80.20,Business Travel 
ECGD,ECGD,25 Jul 23,Home Travel /Subsistence,Risk Approval Division,Clarity Travel Ltd frmly Mawasem Ltd,         228,123.50,Business Travel 
ECGD,ECGD,25 Jul 23,Home Travel /Subsistence,SPoCC,Clarity Travel Ltd frmly Mawasem Ltd,         228,1.00,Business Travel 
ECGD,ECGD,25 Jul 23,Home Travel /Subsistence,SPoCC,Clarity Travel Ltd frmly Mawasem Ltd,         228,1.00,Business Travel 
ECGD,ECGD,25 Jul 23,Home Travel /Subsistence,SPoCC,Clarity Travel Ltd frmly Mawasem Ltd,         228,1.00,Business Travel 
ECGD,ECGD,25 Jul 23,Home Travel /Subsistence,SPoCC,Clarity Travel Ltd frmly Mawasem Ltd,         228,1.00,Business Travel 
ECGD,ECGD,25 Jul 23,Home Travel /Subsistence,SPoCC,Clarity Travel Ltd frmly Mawasem Ltd,         228,2.00,Business Travel 
ECGD,ECGD,25 Jul 23,Home Travel /Subsistence,SPoCC,Clarity Travel Ltd frmly Mawasem Ltd,         228,2.00,Business Travel 
ECGD,ECGD,25 Jul 23,Home Travel /Subsistence,SPoCC,Clarity Travel Ltd frmly Mawasem Ltd,         228,2.00,Business Travel 
ECGD,ECGD,25 Jul 23,Home Travel /Subsistence,SPoCC,Clarity Travel Ltd frmly Mawasem Ltd,         228,2.00,Business Travel 
ECGD,ECGD,25 Jul 23,Home Travel /Subsistence,SPoCC,Clarity Travel Ltd frmly Mawasem Ltd,         228,33.40,Business Travel 
ECGD,ECGD,25 Jul 23,Home Travel /Subsistence,SPoCC,Clarity Travel Ltd frmly Mawasem Ltd,         228,60.00,Business Travel 
ECGD,ECGD,25 Jul 23,Home Travel /Subsistence,SPoCC,Clarity Travel Ltd frmly Mawasem Ltd,         228,67.83,Business Travel 
ECGD,ECGD,25 Jul 23,Home Travel /Subsistence,SPoCC,Clarity Travel Ltd frmly Mawasem Ltd,         228,94.00,Business Travel 
ECGD,ECGD,25 Jul 23,Home Travel /Subsistence,SPoCC,Clarity Travel Ltd frmly Mawasem Ltd,         228,119.00,Business Travel 
ECGD,ECGD,25 Jul 23,Home Travel /Subsistence,SPoCC,Clarity Travel Ltd frmly Mawasem Ltd,         228,239.41,Business Travel 
ECGD,ECGD,25 Jul 23,Home Travel /Subsistence,SPoCC,Clarity Travel Ltd frmly Mawasem Ltd,         228,239.41,Business Travel 
ECGD,ECGD,25 Jul 23,Home Travel /Subsistence,SPoCC,Clarity Travel Ltd frmly Mawasem Ltd,         228,291.80,Business Travel 
ECGD,ECGD,25 Jul 23,Home Travel /Subsistence,SPoCC,Clarity Travel Ltd frmly Mawasem Ltd,         228,369.40,Business Travel 
ECGD,ECGD,25 Jul 23,IT BAU Change & Small Projects,ID,Clarity Travel Ltd frmly Mawasem Ltd,         228,-22.64,IT Systems 
ECGD,ECGD,25 Jul 23,IT BAU Change & Small Projects,ID,Clarity Travel Ltd frmly Mawasem Ltd,         228,695.33,IT Systems 
ECGD,ECGD,25 Jul 23,Overseas Travel (Case Related),Business Group _ Main,Clarity Travel Ltd frmly Mawasem Ltd,         228,3.50,Business Travel 
ECGD,ECGD,25 Jul 23,Overseas Travel (Case Related),Business Group _ Main,Clarity Travel Ltd frmly Mawasem Ltd,         228,476.59,Business Travel 
ECGD,ECGD,25 Jul 23,Overseas Travel (Case Related),LD,Clarity Travel Ltd frmly Mawasem Ltd,         228,2.00,Business Travel 
ECGD,ECGD,25 Jul 23,Overseas Travel (Case Related),LD,Clarity Travel Ltd frmly Mawasem Ltd,         228,"1,088.76",Business Travel 
ECGD,ECGD,25 Jul 23,Overseas Travel/Subsistence,Business Group _ Main,Clarity Travel Ltd frmly Mawasem Ltd,         228,1.00,Business Travel 
ECGD,ECGD,25 Jul 23,Overseas Travel/Subsistence,Business Group _ Main,Clarity Travel Ltd frmly Mawasem Ltd,         228,1.00,Business Travel 
ECGD,ECGD,25 Jul 23,Overseas Travel/Subsistence,Business Group _ Main,Clarity Travel Ltd frmly Mawasem Ltd,         228,2.00,Business Travel 
ECGD,ECGD,25 Jul 23,Overseas Travel/Subsistence,Business Group _ Main,Clarity Travel Ltd frmly Mawasem Ltd,         228,2.00,Business Travel 
ECGD,ECGD,25 Jul 23,Overseas Travel/Subsistence,Business Group _ Main,Clarity Travel Ltd frmly Mawasem Ltd,         228,3.50,Business Travel 
ECGD,ECGD,25 Jul 23,Overseas Travel/Subsistence,Business Group _ Main,Clarity Travel Ltd frmly Mawasem Ltd,         228,5.50,Business Travel 
ECGD,ECGD,25 Jul 23,Overseas Travel/Subsistence,Business Group _ Main,Clarity Travel Ltd frmly Mawasem Ltd,         228,7.00,Business Travel 
ECGD,ECGD,25 Jul 23,Overseas Travel/Subsistence,Business Group _ Main,Clarity Travel Ltd frmly Mawasem Ltd,         228,7.00,Business Travel 
ECGD,ECGD,25 Jul 23,Overseas Travel/Subsistence,Business Group _ Main,Clarity Travel Ltd frmly Mawasem Ltd,         228,7.00,Business Travel 
ECGD,ECGD,25 Jul 23,Overseas Travel/Subsistence,Business Group _ Main,Clarity Travel Ltd frmly Mawasem Ltd,         228,7.00,Business Travel 
ECGD,ECGD,25 Jul 23,Overseas Travel/Subsistence,Business Group _ Main,Clarity Travel Ltd frmly Mawasem Ltd,         228,9.00,Business Travel 
ECGD,ECGD,25 Jul 23,Overseas Travel/Subsistence,Business Group _ Main,Clarity Travel Ltd frmly Mawasem Ltd,         228,9.00,Business Travel 
ECGD,ECGD,25 Jul 23,Overseas Travel/Subsistence,Business Group _ Main,Clarity Travel Ltd frmly Mawasem Ltd,         228,26.80,Business Travel 
ECGD,ECGD,25 Jul 23,Overseas Travel/Subsistence,Business Group _ Main,Clarity Travel Ltd frmly Mawasem Ltd,         228,38.35,Business Travel 
ECGD,ECGD,25 Jul 23,Overseas Travel/Subsistence,Business Group _ Main,Clarity Travel Ltd frmly Mawasem Ltd,         228,56.67,Business Travel 
ECGD,ECGD,25 Jul 23,Overseas Travel/Subsistence,Business Group _ Main,Clarity Travel Ltd frmly Mawasem Ltd,         228,73.40,Business Travel 
ECGD,ECGD,25 Jul 23,Overseas Travel/Subsistence,Business Group _ Main,Clarity Travel Ltd frmly Mawasem Ltd,         228,610.96,Business Travel 
ECGD,ECGD,25 Jul 23,Overseas Travel/Subsistence,Business Group _ Main,Clarity Travel Ltd frmly Mawasem Ltd,         228,610.96,Business Travel 
ECGD,ECGD,25 Jul 23,Overseas Travel/Subsistence,Business Group _ Main,Clarity Travel Ltd frmly Mawasem Ltd,         228,"1,092.20",Business Travel 
ECGD,ECGD,25 Jul 23,Overseas Travel/Subsistence,Business Group _ Main,Clarity Travel Ltd frmly Mawasem Ltd,         228,"1,092.20",Business Travel 
ECGD,ECGD,25 Jul 23,Overseas Travel/Subsistence,Business Group _ Main,Clarity Travel Ltd frmly Mawasem Ltd,         228,"2,878.12",Business Travel 
ECGD,ECGD,25 Jul 23,Overseas Travel/Subsistence,Business Group _ Main,Clarity Travel Ltd frmly Mawasem Ltd,         228,"4,324.30",Business Travel 
ECGD,ECGD,25 Jul 23,Overseas Travel/Subsistence,LD,Clarity Travel Ltd frmly Mawasem Ltd,         228,3.50,Business Travel 
ECGD,ECGD,25 Jul 23,Overseas Travel/Subsistence,LD,Clarity Travel Ltd frmly Mawasem Ltd,         228,288.00,Business Travel 
ECGD,ECGD,25 Jul 23,Overseas Travel/Subsistence,OCCMC,Clarity Travel Ltd frmly Mawasem Ltd,         228,2.00,Business Travel 
ECGD,ECGD,25 Jul 23,Overseas Travel/Subsistence,OCCMC,Clarity Travel Ltd frmly Mawasem Ltd,         228,2.00,Business Travel 
ECGD,ECGD,25 Jul 23,Overseas Travel/Subsistence,OCCMC,Clarity Travel Ltd frmly Mawasem Ltd,         228,2.00,Business Travel 
ECGD,ECGD,25 Jul 23,Overseas Travel/Subsistence,OCCMC,Clarity Travel Ltd frmly Mawasem Ltd,         228,3.50,Business Travel 
ECGD,ECGD,25 Jul 23,Overseas Travel/Subsistence,OCCMC,Clarity Travel Ltd frmly Mawasem Ltd,         228,3.50,Business Travel 
ECGD,ECGD,25 Jul 23,Overseas Travel/Subsistence,OCCMC,Clarity Travel Ltd frmly Mawasem Ltd,         228,7.00,Business Travel 
ECGD,ECGD,25 Jul 23,Overseas Travel/Subsistence,OCCMC,Clarity Travel Ltd frmly Mawasem Ltd,         228,7.00,Business Travel 
ECGD,ECGD,25 Jul 23,Overseas Travel/Subsistence,OCCMC,Clarity Travel Ltd frmly Mawasem Ltd,         228,7.00,Business Travel 
ECGD,ECGD,25 Jul 23,Overseas Travel/Subsistence,OCCMC,Clarity Travel Ltd frmly Mawasem Ltd,         228,7.00,Business Travel 
ECGD,ECGD,25 Jul 23,Overseas Travel/Subsistence,OCCMC,Clarity Travel Ltd frmly Mawasem Ltd,         228,73.40,Business Travel 
ECGD,ECGD,25 Jul 23,Overseas Travel/Subsistence,OCCMC,Clarity Travel Ltd frmly Mawasem Ltd,         228,372.51,Business Travel 
ECGD,ECGD,25 Jul 23,Overseas Travel/Subsistence,OCCMC,Clarity Travel Ltd frmly Mawasem Ltd,         228,417.90,Business Travel 
ECGD,ECGD,25 Jul 23,Overseas Travel/Subsistence,OCCMC,Clarity Travel Ltd frmly Mawasem Ltd,         228,417.90,Business Travel 
ECGD,ECGD,25 Jul 23,Overseas Travel/Subsistence,OCCMC,Clarity Travel Ltd frmly Mawasem Ltd,         228,575.49,Business Travel 
ECGD,ECGD,25 Jul 23,Overseas Travel/Subsistence,OCCMC,Clarity Travel Ltd frmly Mawasem Ltd,         228,575.49,Business Travel 
ECGD,ECGD,25 Jul 23,Overseas Travel/Subsistence,OCCMC,Clarity Travel Ltd frmly Mawasem Ltd,         228,758.28,Business Travel 
ECGD,ECGD,25 Jul 23,Overseas Travel/Subsistence,OCCMC,Clarity Travel Ltd frmly Mawasem Ltd,         228,777.19,Business Travel 
ECGD,ECGD,25 Jul 23,Overseas Travel/Subsistence,OCCMC,Clarity Travel Ltd frmly Mawasem Ltd,         228,"8,163.27",Business Travel 
ECGD,ECGD,25 Jul 23,Overseas Travel/Subsistence,Pricing & Risk Analytics Division,Clarity Travel Ltd frmly Mawasem Ltd,         228,3.50,Business Travel 
ECGD,ECGD,25 Jul 23,Overseas Travel/Subsistence,Pricing & Risk Analytics Division,Clarity Travel Ltd frmly Mawasem Ltd,         228,3.50,Business Travel 
ECGD,ECGD,25 Jul 23,Overseas Travel/Subsistence,Pricing & Risk Analytics Division,Clarity Travel Ltd frmly Mawasem Ltd,         228,7.00,Business Travel 
ECGD,ECGD,25 Jul 23,Overseas Travel/Subsistence,Pricing & Risk Analytics Division,Clarity Travel Ltd frmly Mawasem Ltd,         228,223.00,Business Travel 
ECGD,ECGD,25 Jul 23,Overseas Travel/Subsistence,Pricing & Risk Analytics Division,Clarity Travel Ltd frmly Mawasem Ltd,         228,243.00,Business Travel 
ECGD,ECGD,25 Jul 23,Overseas Travel/Subsistence,Pricing & Risk Analytics Division,Clarity Travel Ltd frmly Mawasem Ltd,         228,268.00,Business Travel 
ECGD,ECGD,25 Jul 23,Overseas Travel/Subsistence,Risk Approval Division,Clarity Travel Ltd frmly Mawasem Ltd,         228,3.50,Business Travel 
ECGD,ECGD,25 Jul 23,Overseas Travel/Subsistence,Risk Approval Division,Clarity Travel Ltd frmly Mawasem Ltd,         228,9.00,Business Travel 
ECGD,ECGD,25 Jul 23,Overseas Travel/Subsistence,Risk Approval Division,Clarity Travel Ltd frmly Mawasem Ltd,         228,288.00,Business Travel 
ECGD,ECGD,25 Jul 23,Overseas Travel/Subsistence,Risk Approval Division,Clarity Travel Ltd frmly Mawasem Ltd,         228,470.59,Business Travel 
ECGD,ECGD,25 Jul 23,Overseas Travel/Subsistence,SPoCC,Clarity Travel Ltd frmly Mawasem Ltd,         228,"-4,161.50",Business Travel 
ECGD,ECGD,25 Jul 23,Overseas Travel/Subsistence,SPoCC,Clarity Travel Ltd frmly Mawasem Ltd,         228,2.00,Business Travel 
ECGD,ECGD,25 Jul 23,Overseas Travel/Subsistence,SPoCC,Clarity Travel Ltd frmly Mawasem Ltd,         228,2.00,Business Travel 
ECGD,ECGD,25 Jul 23,Overseas Travel/Subsistence,SPoCC,Clarity Travel Ltd frmly Mawasem Ltd,         228,2.00,Business Travel 
ECGD,ECGD,25 Jul 23,Overseas Travel/Subsistence,SPoCC,Clarity Travel Ltd frmly Mawasem Ltd,         228,3.50,Business Travel 
ECGD,ECGD,25 Jul 23,Overseas Travel/Subsistence,SPoCC,Clarity Travel Ltd frmly Mawasem Ltd,         228,7.00,Business Travel 
ECGD,ECGD,25 Jul 23,Overseas Travel/Subsistence,SPoCC,Clarity Travel Ltd frmly Mawasem Ltd,         228,7.00,Business Travel 
ECGD,ECGD,25 Jul 23,Overseas Travel/Subsistence,SPoCC,Clarity Travel Ltd frmly Mawasem Ltd,         228,7.00,Business Travel 
ECGD,ECGD,25 Jul 23,Overseas Travel/Subsistence,SPoCC,Clarity Travel Ltd frmly Mawasem Ltd,         228,7.00,Business Travel 
ECGD,ECGD,25 Jul 23,Overseas Travel/Subsistence,SPoCC,Clarity Travel Ltd frmly Mawasem Ltd,         228,9.00,Business Travel 
ECGD,ECGD,25 Jul 23,Overseas Travel/Subsistence,SPoCC,Clarity Travel Ltd frmly Mawasem Ltd,         228,9.00,Business Travel 
ECGD,ECGD,25 Jul 23,Overseas Travel/Subsistence,SPoCC,Clarity Travel Ltd frmly Mawasem Ltd,         228,9.00,Business Travel 
ECGD,ECGD,25 Jul 23,Overseas Travel/Subsistence,SPoCC,Clarity Travel Ltd frmly Mawasem Ltd,         228,9.00,Business Travel 
ECGD,ECGD,25 Jul 23,Overseas Travel/Subsistence,SPoCC,Clarity Travel Ltd frmly Mawasem Ltd,         228,9.00,Business Travel 
ECGD,ECGD,25 Jul 23,Overseas Travel/Subsistence,SPoCC,Clarity Travel Ltd frmly Mawasem Ltd,         228,9.00,Business Travel 
ECGD,ECGD,25 Jul 23,Overseas Travel/Subsistence,SPoCC,Clarity Travel Ltd frmly Mawasem Ltd,         228,111.30,Business Travel 
ECGD,ECGD,25 Jul 23,Overseas Travel/Subsistence,SPoCC,Clarity Travel Ltd frmly Mawasem Ltd,         228,173.14,Business Travel 
ECGD,ECGD,25 Jul 23,Overseas Travel/Subsistence,SPoCC,Clarity Travel Ltd frmly Mawasem Ltd,         228,483.89,Business Travel 
ECGD,ECGD,25 Jul 23,Overseas Travel/Subsistence,SPoCC,Clarity Travel Ltd frmly Mawasem Ltd,         228,483.89,Business Travel 
ECGD,ECGD,25 Jul 23,Overseas Travel/Subsistence,SPoCC,Clarity Travel Ltd frmly Mawasem Ltd,         228,483.89,Business Travel 
ECGD,ECGD,25 Jul 23,Overseas Travel/Subsistence,SPoCC,Clarity Travel Ltd frmly Mawasem Ltd,         228,642.16,Business Travel 
ECGD,ECGD,25 Jul 23,Overseas Travel/Subsistence,SPoCC,Clarity Travel Ltd frmly Mawasem Ltd,         228,642.16,Business Travel 
ECGD,ECGD,25 Jul 23,Overseas Travel/Subsistence,SPoCC,Clarity Travel Ltd frmly Mawasem Ltd,         228,642.16,Business Travel 
ECGD,ECGD,25 Jul 23,Overseas Travel/Subsistence,SPoCC,Clarity Travel Ltd frmly Mawasem Ltd,         228,937.08,Business Travel 
ECGD,ECGD,25 Jul 23,Overseas Travel/Subsistence,SPoCC,Clarity Travel Ltd frmly Mawasem Ltd,         228,937.08,Business Travel 
ECGD,ECGD,25 Jul 23,Overseas Travel/Subsistence,SPoCC,Clarity Travel Ltd frmly Mawasem Ltd,         228,"3,714.91",Business Travel 
ECGD,ECGD,25 Jul 23,Overseas Travel/Subsistence,SPoCC,Clarity Travel Ltd frmly Mawasem Ltd,         228,"3,714.91",Business Travel 
ECGD,ECGD,25 Jul 23,Overseas Travel/Subsistence,SPoCC,Clarity Travel Ltd frmly Mawasem Ltd,         228,"4,757.11",Business Travel 
ECGD,ECGD,10 Jul 23,Technical Services (Recoverable),SSD,Seraph Aviation Management Ltd (USD),        1198,"53,288.57",Technical Services (Recoverable)
ECGD,ECGD,10 Jul 23,Technical Services (Recoverable),SSD,Seraph Aviation Management Ltd (USD),        1199,"27,087.84",Technical Services (Recoverable)
ECGD,ECGD,10 Jul 23,Technical Services (Recoverable),SSD,Seraph Aviation Management Ltd (USD),        1199,"37,617.10",Technical Services (Recoverable)
ECGD,ECGD,10 Jul 23,Technical Services (Recoverable),SSD,Seraph Aviation Management Ltd (USD),        1200,"57,313.34",Technical Services (Recoverable)
ECGD,ECGD,10 Jul 23,Technical Services (Recoverable),SSD,Rohr Aero Services Ltd,        1204,"3,071,782.10",Technical Services (Recoverable)
ECGD,ECGD,10 Jul 23,Technical Services (Recoverable),SSD,ST Engineering Aerospace SolutionsAS,        1205,"1,041,401.71",Technical Services (Recoverable)
ECGD,ECGD,10 Jul 23,Technical Services (Recoverable),SSD,ST Engineering Aerospace SolutionsAS,        1206,"1,041,401.71",Technical Services (Recoverable)
ECGD,ECGD,10 Jul 23,Technical Services (Recoverable),SSD,ST Engineering Aerospace SolutionsAS,        1207,"1,041,401.71",Technical Services (Recoverable)
ECGD,ECGD,10 Jul 23,Technical Services (Recoverable),SSD,ST Engineering Aerospace SolutionsAS,        1208,"1,041,401.71",Technical Services (Recoverable)
ECGD,ECGD,10 Jul 23,Technical Services (Recoverable),SSD,Aergo Captial Limited USD,        1209,"23,669.89",Technical Services (Recoverable)
ECGD,ECGD,10 Jul 23,Technical Services (Recoverable),SSD,Aergo Captial Limited USD,        1209,"23,669.90",Technical Services (Recoverable)
ECGD,ECGD,10 Jul 23,Technical Services (Recoverable),SSD,Aergo Captial Limited USD,        1209,"23,669.90",Technical Services (Recoverable)
ECGD,ECGD,10 Jul 23,Technical Services (Recoverable),SSD,Aergo Captial Limited USD,        1209,"23,669.90",Technical Services (Recoverable)
ECGD,ECGD,10 Jul 23,Technical Services (Recoverable),SSD,Aergo Captial Limited USD,        1209,"23,669.90",Technical Services (Recoverable)
ECGD,ECGD,15 Jul 23,Technical Services (Recoverable),SSD,SGI Aviation Services B.V.,        1215,"118,756.09",Technical Services (Recoverable)
ECGD,ECGD,17 Jul 23,Technical Services (Recoverable),SSD,Aergo Captial Limited USD,        1228,"176,096.44",Technical Services (Recoverable)
ECGD,ECGD,17 Jul 23,Technical Services (Recoverable),SSD,SGI Aviation Services B.V.,        1229,"121,016.28",Technical Services (Recoverable)
ECGD,ECGD,24 Jul 23,Technical Services (Recoverable),SSD,Aergo Captial Limited USD,        1231,"7,532.07",Technical Services (Recoverable)
ECGD,ECGD,24 Jul 23,Technical Services (Recoverable),SSD,Aergo Captial Limited USD,        1231,"7,532.07",Technical Services (Recoverable)
ECGD,ECGD,24 Jul 23,Technical Services (Recoverable),SSD,Aergo Captial Limited USD,        1231,"7,532.07",Technical Services (Recoverable)
ECGD,ECGD,24 Jul 23,Technical Services (Recoverable),SSD,Aergo Captial Limited USD,        1231,"7,532.08",Technical Services (Recoverable)
ECGD,ECGD,24 Jul 23,Technical Services (Recoverable),SSD,Aergo Captial Limited USD,        1231,"7,532.08",Technical Services (Recoverable)
ECGD,ECGD,24 Jul 23,Technical Services (Recoverable),SSD,Aergo Captial Limited USD,        1231,"37,660.37",Technical Services (Recoverable)
ECGD,ECGD,24 Jul 23,Technical Services (Recoverable),SSD,Aergo Captial Limited USD,        1232,"153,615.18",Technical Services (Recoverable)
ECGD,ECGD,25 Jul 23,Legal Services (Recoverable),LD,Allen & Overy,        1239,"50,313.89",Legal Recoverable
ECGD,ECGD,24 Jul 23,Technical Services (Recoverable),SSD,Aergo Captial Limited USD,        1240,"203,851.75",Technical Services (Recoverable)
ECGD,ECGD,28 Jul 23,Technical Services (Recoverable),SSD,Aergo Captial Limited EUR,        1241,"311,410.11",Technical Services (Recoverable)
ECGD,ECGD,28 Jul 23,Technical Services (Recoverable),SSD,Aergo Captial Limited EUR,        1242,"311,410.11",Technical Services (Recoverable)
ECGD,ECGD,24 Jul 23,Technical Services (Recoverable),SSD,SGI Aviation Services B.V.,        1243,"569,735.46",Technical Services (Recoverable)
ECGD,ECGD,25 Jul 23,Technical Services (Recoverable),SSD,Aergo Captial Limited USD,        1244,"47,684.81",Technical Services (Recoverable)
ECGD,ECGD,25 Jul 23,Technical Services (Recoverable),SSD,Aergo Captial Limited USD,        1245,"89,789.74",Technical Services (Recoverable)
ECGD,ECGD,25 Jul 23,Technical Services (Recoverable),SSD,Aergo Captial Limited USD,        1246,"121,660.86",Technical Services (Recoverable)
ECGD,ECGD,24 Jul 23,Technical Services (Recoverable),SSD,Aergo Captial Limited EUR,        1248,"26,883.60",Technical Services (Recoverable)
ECGD,ECGD,24 Jul 23,Technical Services (Recoverable),SSD,Aergo Captial Limited EUR,        1251,"136,211.20",Technical Services (Recoverable)
ECGD,ECGD,31 Jul 23,1HGR Rent & Charges,HRD,Government Property Agency,2830,"-127,692.88",Buiding Cost 
ECGD,ECGD,3 Jul 23,Agency - Interim Managers,HRD,Alexander Mann Solutions,       84210,"1,575.15",Interim Staff 
ECGD,ECGD,3 Jul 23,Agency - Interim Managers,HRD,Alexander Mann Solutions,       84210,"1,837.65",Interim Staff 
ECGD,ECGD,3 Jul 23,Agency - Interim Managers,HRD,Alexander Mann Solutions,       84210,"2,362.70",Interim Staff 
ECGD,ECGD,3 Jul 23,Agency - Interim Managers,HRD,Alexander Mann Solutions,       84210,"2,625.25",Interim Staff 
ECGD,ECGD,3 Jul 23,Agency - Interim Managers,HRD,Alexander Mann Solutions,       84210,"2,823.05",Interim Staff 
ECGD,ECGD,3 Jul 23,Agency - Interim Managers,HRD,Alexander Mann Solutions,       84210,"2,887.75",Interim Staff 
ECGD,ECGD,3 Jul 23,Agency - Interim Managers,HRD,Alexander Mann Solutions,       84210,"3,464.60",Interim Staff 
ECGD,ECGD,3 Jul 23,Agency - Interim Managers,HRD,Alexander Mann Solutions,       84210,"3,592.90",Interim Staff 
ECGD,ECGD,3 Jul 23,Agency - Specialist Contractors,HRD,Alexander Mann Solutions,       84210,"1,539.81",Interim Staff 
ECGD,ECGD,3 Jul 23,Agency - Specialist Contractors,HRD,Alexander Mann Solutions,       84210,"3,079.65",Interim Staff 
ECGD,ECGD,3 Jul 23,Agency - Specialist Contractors,HRD,Alexander Mann Solutions,       84210,"3,079.65",Interim Staff 
ECGD,ECGD,3 Jul 23,Agency - Specialist Contractors,HRD,Alexander Mann Solutions,       84210,"3,079.65",Interim Staff 
ECGD,ECGD,3 Jul 23,Agency - Specialist Contractors,HRD,Alexander Mann Solutions,       84210,"3,079.65",Interim Staff 
ECGD,ECGD,3 Jul 23,Agency - Specialist Contractors,HRD,Alexander Mann Solutions,       84210,"3,079.65",Interim Staff 
ECGD,ECGD,3 Jul 23,Agency - Specialist Contractors,HRD,Alexander Mann Solutions,       84210,"3,079.65",Interim Staff 
ECGD,ECGD,3 Jul 23,Agency - Specialist Contractors,HRD,Alexander Mann Solutions,       84210,"3,079.65",Interim Staff 
ECGD,ECGD,3 Jul 23,Agency - Specialist Contractors,HRD,Alexander Mann Solutions,       84210,"3,079.68",Interim Staff 
ECGD,ECGD,3 Jul 23,Agency - Specialist Contractors,HRD,Alexander Mann Solutions,       84210,"3,097.80",Interim Staff 
ECGD,ECGD,3 Jul 23,Agency - Specialist Contractors,HRD,Alexander Mann Solutions,       84210,"3,150.30",Interim Staff 
ECGD,ECGD,3 Jul 23,Agency - Specialist Contractors,HRD,Alexander Mann Solutions,       84210,"3,336.30",Interim Staff 
ECGD,ECGD,3 Jul 23,Agency - Specialist Contractors,HRD,Alexander Mann Solutions,       84210,"3,412.80",Interim Staff 
ECGD,ECGD,3 Jul 23,Agency - Specialist Contractors,HRD,Alexander Mann Solutions,       84210,"3,490.25",Interim Staff 
ECGD,ECGD,3 Jul 23,Agency - Specialist Contractors,HRD,Alexander Mann Solutions,       84210,"3,592.90",Interim Staff 
ECGD,ECGD,3 Jul 23,Agency - Specialist Contractors,HRD,Alexander Mann Solutions,       84210,"3,675.35",Interim Staff 
ECGD,ECGD,3 Jul 23,IT Cloud and Hosting,ID,Bytes Software Services Ltd,       84220,"70,295.74",IT Systems 
ECGD,ECGD,10 Jul 23,Overseas Export Managers,OCCMC,Foreign & Commonwealth Office,       84227,"66,395.88",Overseas staff
ECGD,ECGD,10 Jul 23,Project Agency - Specialist Cont,Change Board,Nomensa Ltd,       84228,"59,900.00",Project Contractors
ECGD,ECGD,10 Jul 23,Home Travel /Subsistence,HRD,Cabinet Office,       84232,"3,431.05",Business Travel 
ECGD,ECGD,10 Jul 23,National Insurance,HRD,Cabinet Office,       84232,"4,007.91",Internal Staff Cost
ECGD,ECGD,10 Jul 23,Salaries & Wages,HRD,Cabinet Office,       84232,"31,922.25",Internal Staff Cost
ECGD,ECGD,10 Jul 23,Superannuation,HRD,Cabinet Office,       84232,"7,635.84",Internal Staff Cost
ECGD,ECGD,10 Jul 23,Agency - Interim Managers,HRD,Alexander Mann Solutions,       84250,94.00,Interim Staff 
ECGD,ECGD,10 Jul 23,Agency - Interim Managers,HRD,Alexander Mann Solutions,       84250,"1,129.22",Interim Staff 
ECGD,ECGD,10 Jul 23,Agency - Interim Managers,HRD,Alexander Mann Solutions,       84250,"1,470.12",Interim Staff 
ECGD,ECGD,10 Jul 23,Agency - Interim Managers,HRD,Alexander Mann Solutions,       84250,"1,745.80",Interim Staff 
ECGD,ECGD,10 Jul 23,Agency - Interim Managers,HRD,Alexander Mann Solutions,       84250,"2,100.20",Interim Staff 
ECGD,ECGD,10 Jul 23,Agency - Interim Managers,HRD,Alexander Mann Solutions,       84250,"2,362.70",Interim Staff 
ECGD,ECGD,10 Jul 23,Agency - Interim Managers,HRD,Alexander Mann Solutions,       84250,"2,820.45",Interim Staff 
ECGD,ECGD,10 Jul 23,Agency - Interim Managers,HRD,Alexander Mann Solutions,       84250,"2,887.75",Interim Staff 
ECGD,ECGD,10 Jul 23,Agency - Interim Managers,HRD,Alexander Mann Solutions,       84250,"3,464.60",Interim Staff 
ECGD,ECGD,10 Jul 23,Agency - Interim Managers,HRD,Alexander Mann Solutions,       84250,"3,592.90",Interim Staff 
ECGD,ECGD,10 Jul 23,Agency - Specialist Contractors,HRD,Alexander Mann Solutions,       84250,"1,539.81",Interim Staff 
ECGD,ECGD,10 Jul 23,Agency - Specialist Contractors,HRD,Alexander Mann Solutions,       84250,"3,079.65",Interim Staff 
ECGD,ECGD,10 Jul 23,Agency - Specialist Contractors,HRD,Alexander Mann Solutions,       84250,"3,079.68",Interim Staff 
ECGD,ECGD,10 Jul 23,Agency - Specialist Contractors,HRD,Alexander Mann Solutions,       84250,"3,097.80",Interim Staff 
ECGD,ECGD,10 Jul 23,Agency - Specialist Contractors,HRD,Alexander Mann Solutions,       84250,"3,150.30",Interim Staff 
ECGD,ECGD,10 Jul 23,Agency - Specialist Contractors,HRD,Alexander Mann Solutions,       84250,"3,490.25",Interim Staff 
ECGD,ECGD,10 Jul 23,Agency - Specialist Contractors,HRD,Alexander Mann Solutions,       84250,"3,675.35",Interim Staff 
ECGD,ECGD,10 Jul 23,Agency - Specialist Contractors,HRD,Alexander Mann Solutions,       84250,"4,106.20",Interim Staff 
ECGD,ECGD,10 Jul 23,Agency - Temporary Staff,HRD,Alexander Mann Solutions,       84250,572.17,Interim Staff 
ECGD,ECGD,10 Jul 23,Agency - Temporary Staff,HRD,Alexander Mann Solutions,       84250,572.17,Interim Staff 
ECGD,ECGD,10 Jul 23,IT Managed Service Transformation,ID,Softwire Technology Limited,       84253,"42,970.00",IT Systems 
ECGD,ECGD,10 Jul 23,IT Managed Service Transformation,ID,Softwire Technology Limited,       84254,"23,400.00",IT Systems 
ECGD,ECGD,10 Jul 23,Project Agency - Specialist Cont,Change Board,Nomensa Ltd,       84258,"56,100.00",Project Contractors
ECGD,ECGD,10 Jul 23,Project Agency - Specialist Cont,Change Board,Nomensa Ltd,       84259,"21,000.00",Project Contractors
ECGD,ECGD,10 Jul 23,Project Agency - Specialist Cont,Change Board,Nomensa Ltd,       84266,"71,550.00",Project Contractors
ECGD,ECGD,16 Jul 23,Assets Under Construction,Change Board,Nomensa Ltd,       84283,"25,080.00",Project Contractors
ECGD,ECGD,16 Jul 23,Overseas Export Managers,OCCMC,Green Park Interim & Executive Searc,       84286,"25,919.78",Overseas staff
ECGD,ECGD,17 Jul 23,Agency - Interim Managers,HRD,Alexander Mann Solutions,       84288,"1,837.65",Interim Staff 
ECGD,ECGD,17 Jul 23,Agency - Interim Managers,HRD,Alexander Mann Solutions,       84288,"2,100.20",Interim Staff 
ECGD,ECGD,17 Jul 23,Agency - Interim Managers,HRD,Alexander Mann Solutions,       84288,"2,362.70",Interim Staff 
ECGD,ECGD,17 Jul 23,Agency - Interim Managers,HRD,Alexander Mann Solutions,       84288,"2,494.00",Interim Staff 
ECGD,ECGD,17 Jul 23,Agency - Interim Managers,HRD,Alexander Mann Solutions,       84288,"2,625.25",Interim Staff 
ECGD,ECGD,17 Jul 23,Agency - Interim Managers,HRD,Alexander Mann Solutions,       84288,"2,887.75",Interim Staff 
ECGD,ECGD,17 Jul 23,Agency - Interim Managers,HRD,Alexander Mann Solutions,       84288,"3,464.60",Interim Staff 
ECGD,ECGD,17 Jul 23,Agency - Interim Managers,HRD,Alexander Mann Solutions,       84288,"3,592.90",Interim Staff 
ECGD,ECGD,17 Jul 23,Agency - Specialist Contractors,HRD,Alexander Mann Solutions,       84288,615.93,Interim Staff 
ECGD,ECGD,17 Jul 23,Agency - Specialist Contractors,HRD,Alexander Mann Solutions,       84288,"1,847.79",Interim Staff 
ECGD,ECGD,17 Jul 23,Agency - Specialist Contractors,HRD,Alexander Mann Solutions,       84288,"3,079.65",Interim Staff 
ECGD,ECGD,17 Jul 23,Agency - Specialist Contractors,HRD,Alexander Mann Solutions,       84288,"3,079.65",Interim Staff 
ECGD,ECGD,17 Jul 23,Agency - Specialist Contractors,HRD,Alexander Mann Solutions,       84288,"3,079.65",Interim Staff 
ECGD,ECGD,17 Jul 23,Agency - Specialist Contractors,HRD,Alexander Mann Solutions,       84288,"3,079.65",Interim Staff 
ECGD,ECGD,17 Jul 23,Agency - Specialist Contractors,HRD,Alexander Mann Solutions,       84288,"3,079.65",Interim Staff 
ECGD,ECGD,17 Jul 23,Agency - Specialist Contractors,HRD,Alexander Mann Solutions,       84288,"3,079.68",Interim Staff 
ECGD,ECGD,17 Jul 23,Agency - Specialist Contractors,HRD,Alexander Mann Solutions,       84288,"3,097.80",Interim Staff 
ECGD,ECGD,17 Jul 23,Agency - Specialist Contractors,HRD,Alexander Mann Solutions,       84288,"3,150.30",Interim Staff 
ECGD,ECGD,17 Jul 23,Agency - Specialist Contractors,HRD,Alexander Mann Solutions,       84288,"3,197.58",Interim Staff 
ECGD,ECGD,17 Jul 23,Agency - Specialist Contractors,HRD,Alexander Mann Solutions,       84288,"3,412.80",Interim Staff 
ECGD,ECGD,17 Jul 23,Agency - Specialist Contractors,HRD,Alexander Mann Solutions,       84288,"3,412.80",Interim Staff 
ECGD,ECGD,17 Jul 23,Agency - Specialist Contractors,HRD,Alexander Mann Solutions,       84288,"3,490.25",Interim Staff 
ECGD,ECGD,17 Jul 23,Agency - Specialist Contractors,HRD,Alexander Mann Solutions,       84288,"3,592.90",Interim Staff 
ECGD,ECGD,17 Jul 23,Agency - Specialist Contractors,HRD,Alexander Mann Solutions,       84288,"3,592.90",Interim Staff 
ECGD,ECGD,17 Jul 23,Agency - Temporary Staff,HRD,Alexander Mann Solutions,       84288,710.28,Interim Staff 
ECGD,ECGD,17 Jul 23,Agency - Temporary Staff,HRD,Alexander Mann Solutions,       84288,866.17,Interim Staff 
ECGD,ECGD,17 Jul 23,Consultancy,Compliance,Ernst and Young LLP,       84291,"22,998.00",Consultancy
ECGD,ECGD,24 Jul 23,IT Software Licensing & Subscription,ID,Fidelity National Info Services,       84302,"21,966.06",IT Systems 
ECGD,ECGD,24 Jul 23,IT Software Licensing & Subscription,ID,Fidelity National Info Services,       84302,"70,291.38",IT Systems 
ECGD,ECGD,24 Jul 23,Online costs,Business Group _ Main,Company Watch Limited,       84305,"50,682.00",Data Subscription 
ECGD,ECGD,24 Jul 23,Online costs,Risk Approval Division,Moody's Analytics,       84317,"195,365.00",Financial systems
ECGD,ECGD,25 Jul 23,Agency - Interim Managers,HRD,Alexander Mann Solutions,       84319,821.24,Interim Staff 
ECGD,ECGD,25 Jul 23,Agency - Interim Managers,HRD,Alexander Mann Solutions,       84319,"1,026.55",Interim Staff 
ECGD,ECGD,25 Jul 23,Agency - Interim Managers,HRD,Alexander Mann Solutions,       84319,"1,026.55",Interim Staff 
ECGD,ECGD,25 Jul 23,Agency - Interim Managers,HRD,Alexander Mann Solutions,       84319,"1,026.55",Interim Staff 
ECGD,ECGD,25 Jul 23,Agency - Interim Managers,HRD,Alexander Mann Solutions,       84319,"1,231.86",Interim Staff 
ECGD,ECGD,25 Jul 23,Agency - Interim Managers,HRD,Alexander Mann Solutions,       84319,"1,231.86",Interim Staff 
ECGD,ECGD,25 Jul 23,Agency - Interim Managers,HRD,Alexander Mann Solutions,       84319,"1,437.17",Interim Staff 
ECGD,ECGD,25 Jul 23,Agency - Interim Managers,HRD,Alexander Mann Solutions,       84319,"1,470.12",Interim Staff 
ECGD,ECGD,25 Jul 23,Agency - Interim Managers,HRD,Alexander Mann Solutions,       84319,"2,100.20",Interim Staff 
ECGD,ECGD,25 Jul 23,Agency - Interim Managers,HRD,Alexander Mann Solutions,       84319,"2,362.70",Interim Staff 
ECGD,ECGD,25 Jul 23,Agency - Interim Managers,HRD,Alexander Mann Solutions,       84319,"2,655.90",Interim Staff 
ECGD,ECGD,25 Jul 23,Agency - Interim Managers,HRD,Alexander Mann Solutions,       84319,"2,771.68",Interim Staff 
ECGD,ECGD,25 Jul 23,Agency - Interim Managers,HRD,Alexander Mann Solutions,       84319,"2,874.32",Interim Staff 
ECGD,ECGD,25 Jul 23,Agency - Interim Managers,HRD,Alexander Mann Solutions,       84319,"2,887.75",Interim Staff 
ECGD,ECGD,25 Jul 23,Agency - Interim Managers,HRD,Alexander Mann Solutions,       84319,"3,079.65",Interim Staff 
ECGD,ECGD,25 Jul 23,Agency - Specialist Contractors,HRD,Alexander Mann Solutions,       84319,377.39,Interim Staff 
ECGD,ECGD,25 Jul 23,Agency - Specialist Contractors,HRD,Alexander Mann Solutions,       84319,630.06,Interim Staff 
ECGD,ECGD,25 Jul 23,Agency - Specialist Contractors,HRD,Alexander Mann Solutions,       84319,"1,539.81",Interim Staff 
ECGD,ECGD,25 Jul 23,Agency - Specialist Contractors,HRD,Alexander Mann Solutions,       84319,"2,053.10",Interim Staff 
ECGD,ECGD,25 Jul 23,Agency - Specialist Contractors,HRD,Alexander Mann Solutions,       84319,"2,694.72",Interim Staff 
ECGD,ECGD,25 Jul 23,Agency - Specialist Contractors,HRD,Alexander Mann Solutions,       84319,"3,079.65",Interim Staff 
ECGD,ECGD,25 Jul 23,Agency - Specialist Contractors,HRD,Alexander Mann Solutions,       84319,"3,079.65",Interim Staff 
ECGD,ECGD,25 Jul 23,Agency - Specialist Contractors,HRD,Alexander Mann Solutions,       84319,"3,079.65",Interim Staff 
ECGD,ECGD,25 Jul 23,Agency - Specialist Contractors,HRD,Alexander Mann Solutions,       84319,"3,097.80",Interim Staff 
ECGD,ECGD,25 Jul 23,Agency - Specialist Contractors,HRD,Alexander Mann Solutions,       84319,"3,336.30",Interim Staff 
ECGD,ECGD,25 Jul 23,Agency - Specialist Contractors,HRD,Alexander Mann Solutions,       84319,"3,412.80",Interim Staff 
ECGD,ECGD,25 Jul 23,Agency - Specialist Contractors,HRD,Alexander Mann Solutions,       84319,"3,592.90",Interim Staff 
ECGD,ECGD,25 Jul 23,Agency - Specialist Contractors,HRD,Alexander Mann Solutions,       84319,"3,675.35",Interim Staff 
ECGD,ECGD,25 Jul 23,Agency - Specialist Contractors,HRD,Alexander Mann Solutions,       84319,"3,695.58",Interim Staff 
ECGD,ECGD,25 Jul 23,Agency - Temporary Staff,HRD,Alexander Mann Solutions,       84319,710.28,Interim Staff 
ECGD,ECGD,25 Jul 23,Agency - Temporary Staff,HRD,Alexander Mann Solutions,       84319,866.17,Interim Staff 
ECGD,ECGD,24 Jul 23,Document Management,SPoCC,Iron Mountain (UK) Limited,       84320,"29,874.74",Document management
ECGD,ECGD,31 Jul 23,Marketing,OCCMC,Department for International Trade,       84340,"37,216.79",Marketing and Communications 
ECGD,ECGD,31 Jul 23,Marketing Sponsorship Income,OCCMC,Department for International Trade,       84340,"-12,500.00",Sponsorship income
ECGD,ECGD,31 Jul 23,Marketing,OCCMC,Department for International Trade,       84341,"37,216.79",Marketing and Communications 
ECGD,ECGD,31 Jul 23,Marketing Sponsorship Income,OCCMC,Department for International Trade,       84341,"-12,500.00",Sponsorship income
ECGD,ECGD,26 Jul 23,IT Software Licensing & Subscription,ID,Dun & Bradstreet Ltd,       84345,"62,504.00",IT Systems 
ECGD,ECGD,31 Jul 23,Agency - Interim Managers,HRD,Alexander Mann Solutions,       84351,"1,102.59",Interim Staff 
ECGD,ECGD,31 Jul 23,Agency - Interim Managers,HRD,Alexander Mann Solutions,       84351,"1,575.15",Interim Staff 
ECGD,ECGD,31 Jul 23,Agency - Interim Managers,HRD,Alexander Mann Solutions,       84351,"2,362.70",Interim Staff 
ECGD,ECGD,31 Jul 23,Agency - Interim Managers,HRD,Alexander Mann Solutions,       84351,"2,494.00",Interim Staff 
ECGD,ECGD,31 Jul 23,Agency - Interim Managers,HRD,Alexander Mann Solutions,       84351,"2,494.00",Interim Staff 
ECGD,ECGD,31 Jul 23,Agency - Interim Managers,HRD,Alexander Mann Solutions,       84351,"3,079.65",Interim Staff 
ECGD,ECGD,31 Jul 23,Agency - Interim Managers,HRD,Alexander Mann Solutions,       84351,"3,079.65",Interim Staff 
ECGD,ECGD,31 Jul 23,Agency - Interim Managers,HRD,Alexander Mann Solutions,       84351,"3,592.90",Interim Staff 
ECGD,ECGD,31 Jul 23,Agency - Specialist Contractors,HRD,Alexander Mann Solutions,       84351,"1,396.10",Interim Staff 
ECGD,ECGD,31 Jul 23,Agency - Specialist Contractors,HRD,Alexander Mann Solutions,       84351,"1,539.81",Interim Staff 
ECGD,ECGD,31 Jul 23,Agency - Specialist Contractors,HRD,Alexander Mann Solutions,       84351,"1,539.81",Interim Staff 
ECGD,ECGD,31 Jul 23,Agency - Specialist Contractors,HRD,Alexander Mann Solutions,       84351,"2,566.35",Interim Staff 
ECGD,ECGD,31 Jul 23,Agency - Specialist Contractors,HRD,Alexander Mann Solutions,       84351,"2,566.35",Interim Staff 
ECGD,ECGD,31 Jul 23,Agency - Specialist Contractors,HRD,Alexander Mann Solutions,       84351,"3,079.65",Interim Staff 
ECGD,ECGD,31 Jul 23,Agency - Specialist Contractors,HRD,Alexander Mann Solutions,       84351,3079.65,Interim Staff 
ECGD,ECGD,31 Jul 23,Agency - Specialist Contractors,HRD,Alexander Mann Solutions,       84351,3079.65,Interim Staff 
ECGD,ECGD,31 Jul 23,Agency - Specialist Contractors,HRD,Alexander Mann Solutions,       84351,3079.65,Interim Staff 
ECGD,ECGD,31 Jul 23,Agency - Specialist Contractors,HRD,Alexander Mann Solutions,       84351,3079.68,Interim Staff 
ECGD,ECGD,31 Jul 23,Agency - Specialist Contractors,HRD,Alexander Mann Solutions,       84351,3097.8,Interim Staff 
ECGD,ECGD,31 Jul 23,Agency - Specialist Contractors,HRD,Alexander Mann Solutions,       84351,3150.3,Interim Staff 
ECGD,ECGD,31 Jul 23,Agency - Specialist Contractors,HRD,Alexander Mann Solutions,       84351,3336.3,Interim Staff 
ECGD,ECGD,31 Jul 23,Agency - Specialist Contractors,HRD,Alexander Mann Solutions,       84351,3412.8,Interim Staff 
ECGD,ECGD,31 Jul 23,Agency - Specialist Contractors,HRD,Alexander Mann Solutions,       84351,3592.9,Interim Staff 
ECGD,ECGD,31 Jul 23,Agency - Specialist Contractors,HRD,Alexander Mann Solutions,       84351,3675.35,Interim Staff 
ECGD,ECGD,31 Jul 23,Agency - Temporary Staff,HRD,Alexander Mann Solutions,       84351,710.28,Interim Staff 
ECGD,ECGD,31 Jul 23,Agency - Temporary Staff,HRD,Alexander Mann Solutions,       84351,866.17,Interim Staff 
ECGD,ECGD,31 Jul 23,Marketing,OCCMC,Manning Gottlieb OMD,       84356,64914.65,Marketing and Communications 
